{"text_format":"1","workbook":"xlsx","n_sheets":5,"sheets":["Меню","Заявка на договор ТП юр лицо","Заявка на договор ТП для ИП","Заявка на договор ТП физлицо","Списки"],"not_rendered":{"charts":0,"images":0,"macros":0,"external_links":0,"defined_names":5,"comments":0,"pivot_tables":0},"unopened":[],"bounds":{"document_bytes":16777216,"sheet_cells":100000,"rows_first":2000,"rows_last":500,"rows_between":2000,"halvings":0,"cell_chars":16384,"cell_head_chars":4096},"cells_cut":0,"cells_raw":0,"read":"whole","date_system":"1900"}

{"sheet":"Меню","index":0,"n_rows":9,"n_cols":2,"rows_kept":9,"cut":false,"hidden":false,"merged":[]}
[]
[null,"Выберите нужный вариант:"]
[null,"Заключение Договора о подключении к системе теплоснабжения АО \"Теплосеть\""]
[null,"Форма заявки на подключение к системе теплоснабжения АО \"Теплосеть\" в случае если Вы:"]
[null,"Юридическое лицо"]
[]
[null,"Индивидуальный предприниматель"]
[]
[null,"Физическое лицо"]

{"sheet":"Заявка на договор ТП юр лицо","index":1,"n_rows":162,"n_cols":12,"rows_kept":162,"cut":false,"hidden":false,"merged":[[43,2,43,4],[39,2,39,10],[30,2,30,10],[91,1,91,10],[97,1,97,10],[55,3,55,4],[58,9,58,10],[88,1,88,10],[49,2,49,5],[13,1,13,10],[148,2,148,9],[99,5,99,10],[100,5,100,10],[101,5,101,10],[106,1,108,10],[112,2,112,3],[112,6,112,8],[145,2,145,9],[146,2,146,9],[147,2,147,9],[45,1,45,4],[46,2,46,10],[60,9,60,10],[143,2,143,9],[49,7,49,10],[14,1,14,10],[17,1,18,1],[104,1,104,10],[118,1,118,10],[149,2,149,9],[150,2,150,9],[151,2,151,9],[152,2,152,9],[138,1,138,10],[23,0,25,0],[102,1,102,3],[102,9,102,10],[101,1,101,2],[101,3,101,4],[53,2,53,10],[86,1,87,10],[99,1,99,2],[99,3,99,4],[100,1,100,2],[100,3,100,4],[74,1,74,10],[35,2,35,4],[35,6,35,10],[78,1,80,10],[93,1,95,10],[57,1,57,10],[159,2,159,3],[159,9,159,10],[116,1,116,2],[120,1,123,10],[127,1,129,10],[133,1,136,10],[158,9,158,10],[153,2,153,9],[154,2,154,9],[144,2,144,9],[157,2,157,9],[142,2,142,9],[131,1,131,10],[155,2,155,9],[156,2,156,9],[20,11,22,11],[22,2,22,10],[23,2,23,4],[23,6,23,10],[23,11,25,11],[24,3,24,4],[24,6,24,7],[25,9,25,10],[29,9,29,10],[26,2,26,7],[26,9,26,10],[28,2,28,7],[28,9,28,10],[20,1,20,10],[62,6,62,7],[15,1,15,10],[62,9,62,10],[63,2,63,3],[63,4,63,5],[63,6,63,7],[63,9,63,10],[64,2,64,3],[64,4,64,5],[64,6,64,7],[64,9,64,10],[41,2,41,4],[33,2,33,3],[37,2,37,4],[37,6,37,10],[17,3,18,5],[27,2,27,7],[31,2,31,10],[41,8,41,10],[43,8,43,10],[33,7,33,8],[17,2,18,2],[17,6,18,6],[17,7,18,9],[6,1,6,10],[1,6,1,10],[71,2,71,3],[71,4,71,5],[71,6,71,7],[71,9,71,10],[72,2,72,3],[72,4,72,5],[72,6,72,7],[72,9,72,10],[65,4,65,5],[65,6,65,7],[65,9,65,10],[65,2,65,3],[69,2,69,3],[69,4,69,5],[69,6,69,7],[69,9,69,10],[70,2,70,3],[70,4,70,5],[70,6,70,7],[70,9,70,10],[62,2,62,3],[62,4,62,5]]}
[]
[null,null,null,null,null,null,"Генеральному директору АО \"Теплосеть\"\n"]
[]
[]
[]
[]
[null,"ЗАЯВКА НА ПОДКЛЮЧЕНИЕ К СИСТЕМЕ ТЕПЛОСНАБЖЕНИЯ АО \"ТЕПЛОСЕТЬ\""]
[null,null,null,null,"(для юридического лица)"]
[]
[]
[]
[null,null,null,null,"Уважаемый ________________!"]
[]
[null,"Прошу Вас заключить договор о подключении к системе теплоснабжения АО \"Теплосеть\" объекта капитального строительства: "]
[null,"многоквартирный дом со встроенно-пристроенными помещениями"]
[null,"(наименование объекта)"]
[]
[null,"в связи с: необходимостью подключения нового объекта",null,"увеличением тепловой нагрузки или тепловой мощности подключаемого объекта",null,null,null,"реконструкцией или модернизацией объекта без увеличения тепловой нагрузки или тепловой мощности",null,null,null,"Необходимо выбрать нужный вариант"]
[]
[]
[null,"1. Сведения о заявителе:"]
[]
[null,"Полное наименование организации","ООО \"СТРОЙТЕПЛО\""]
[]
[null,"Запись о включении в ЕГРЮЛ (ОГРН)","от","00.00.0000",null,"№","000000000000000"]
[]
[null,"Ф.И.О. уполномоченного органа (представителя)","Федоров Федор Федорович"]
[null,null,"*В данной графе указываются лица, имеющие право действовать от имени Общества на основании доверенности, либо без доверенности на основании учредительных документов."]
[null,"Документ, подтверждающий полномочия представителя","Устав"]
[]
[null,"Адрес места нахождения","355000 Ставрополь, ул. Новая,355"]
[null,null,"** Место нахождения юридического лица определяется местом его государственной регистрации на территории Российской Федерации. Юридическое лицо несет риск последствий неполучения юридически значимых сообщений, доставленных по адресу, указанному в ЕГРЮЛ. Сообщения, доставленные по адресу, указанному в ЕГРЮЛ, считаются полученными юридическим лицом, даже если оно не находится по указанному адресу."]
[]
[null,"ИНН","2630000000",null,"КПП","263000000","ОКПО","0000000000000"]
[]
[null,"р/с","0000000000000000000",null,null,"в","Банке АО"]
[]
[null,"К/С (Л/С для бюджетных организаций)",null,null,null,"БИК"]
[]
[null,"Контактное лицо (Ф.И.О.)","Иванов Иван Иванович"]
[]
[null,"Основной телефон ","00-00-00",null,null,null,null,"Дополнительный телефон","00-00-00"]
[]
[null,"Основной e-mail","000@000",null,null,null,null,"Дополнительный e-mail"]
[]
[null,"Уведомить меня по основным контактным данным ",null,null,null,null,null,null,null,null,null,"Необходимо выбрать нужный вариант"]
[null,null,"*** В случае если Заявитель будет недоступен по вышеуказанному контакту, Технические условия подключения будут отправлены почтой по  адресу, указанному в Разделе 1 настоящего Запроса"]
[null,"2. Местонахождение подключаемого объекта:"]
[]
[null,"Город","Ставрополь",null,null,null,"Район","Промышленный"]
[]
[]
[]
[null,"Улица","Новая"]
[]
[null,"Дом","300"]
[]
[null,"3. Технические параметры подключаемого объекта:"]
[null,"3.1 Таблица тепловых нагрузок по видам потребления "]
[null,"(Заполняется одна из двух таблиц)"]
[null,"Для неподключенных строящихся (построенных) объектов:",null,null,null,null,null,null,null,"поле считается автоматически"]
[]
[null,"Наименование","Отопление",null,"Вентиляция",null,"ГВС ",null,"Прочее","Всего "]
[null,"Тепловая нагрузка, Гкал / час",0,null,0,null,0,null,0,{"$f":"C64+E64+G64+I64","v":0}]
[]
[]
[]
[null,"Для реконструируемых объектов:"]
[]
[null,"Наименование","Отопление",null,"Вентиляция",null,"ГВС ",null,"Прочее","Всего "]
[null,"Тепловая нагрузка существующая, Гкал / час",0.3,null,0.1,null,0.09,null,0,{"$f":"C71+E71+G71+I71","v":0.49}]
[null,"Тепловая нагрузка после реконструкции, Гкал / час",0.62,null,0.12,null,0.3,null,0,{"$f":"C72+E72+G72+I72","v":1.04}]
[null,"Тепловая нагрузка дополнительная, Гкал / час",{"$f":"C72-C71","v":0.32},null,{"$f":"E72-E71","v":1.999999999999999E-2},null,{"$f":"G72-G71","v":0.21},null,{"$f":"I72-I71","v":0},0.54999999999999993,null,"Считается как разница между Тепловая нагрузка после реконструкции и Тепловая нагрузка существующая"]
[]
[null,"ВАЖНО: Если в рамках заявки на подключение планируется заключение договора о подключении нескольких объектов капитального строительства, то заявка должна содержать в себе таблицы нагрузок по каждому объекту."]
[]
[null,"3.2 Режимы теплопотребления для подключаемого объекта:"]
[]
[null,"непрерывный",null,null,null,null,null,null,null,null,null,"Необходимо выбрать из выпадающего списка"]
[]
[]
[null,"Если нужного варианта режима в списке нет, укажите собственный вариант"]
[]
[]
[null,"3.3 Расположение узла учета тепловой энергии "]
[]
[null,"на вводе теплового пункта, принадлежащем потребителю"]
[]
[null,"Я хочу вместе с проектом Договора о подключении получить Технические условия на организацию учета тепловой энергии, теплоносителя:"]
[null,null,null,null,"Да",null,"Нет"]
[]
[null,"3.4 Требования к надежности теплоснабжения подключаемого объекта (допустимые перерывы в подаче теплоносителей  по продолжительности, периодам годам и др.)"]
[]
[null,"2 категория - потребители, допускающие снижение температуры в отапливаемых помещениях на период ликвидации аварии, но не более 54 ч: \n-        жилых и общественных зданий до 12 °С; \n-        промышленных зданий до 8 °С  ",null,null,null,null,null,null,null,null,null,"Необходимо выбрать из выпадающего списка"]
[]
[]
[]
[null,"3.5 Наличие и возможность использования собственных источников тепловой энергии (с указанием их мощностей и режимов работы)"]
[]
[null,"Наименование источника тепловой энергии",null,"Тепловая мощность,\nГкал / час",null,"Режим работы"]
[null,"нет"]
[]
[]
[]
[null,"4. Правовые основания пользования подключаемым объектом или земельным участком, на котором расположен подключаемый объект:"]
[]
[null,"договор аренды земельного участка"]
[]
[]
[]
[null,"5. Технические условия (если ранее выдавались):"]
[]
[null,"от","2018-11-11",null,null,"№",0]
[]
[null,"6. Планируемый срок ввода объекта в эксплуатацию:"]
[]
[null,2021]
[]
[null,"7. Информация о границах земельного участка, на котором планируется осуществить строительство / реконструкцию / модернизацию подключаемого объекта (содержится в ГПЗУ):"]
[]
[null,"00:000:0000:00000"]
[]
[]
[]
[]
[null,"8. Информация о виде разрешенного использования земельного участка (содержится в ГПЗУ):"]
[]
[null,"Многоэтажная жилая застройка (высотная застройка)"]
[]
[]
[]
[null,"9. Информация о предельных параметрах разрешенного строительства / реконструкции / модернизации подключаемого объекта (содержится в ГПЗУ):"]
[]
[null,"Размещение жилых домов, предназначенных для разделения на квартиры, каждая из которых пригодна для постоянного проживания (жилые дома высотой девять и выше этажей, включая подземные, разделенных на двадцать и более квартир);\n"]
[]
[]
[]
[]
[null,"Я, действуя своей волей и в своем интересе, в соответствии со ст. 9 Федерального закона от 27 июля 2006 г. № 152-ФЗ «О персональных данных» даю согласие на обработку моих персональных данных, в целях осуществления договорных отношений в рамках законодательства РФ в сфере теплоснабжения."]
[null,null,null,null,"Да",null,"Нет"]
[]
[]
[null,null,"Перечень необходимых документов для заключения Договора о подключении к системе теплоснабжения АО \"Теплосеть\""]
[null,1,"Заверенные копии учредительных документов:"]
[null,"-","устав юридического лица (в том числе все изменения и дополнения к нему);"]
[null,"-","свидетельство о государственной регистрации юридического лица;"]
[null,"-","свидетельство о внесении записи в единый государственный реестр юридических лиц о юридическом лице (далее – ЕГРЮЛ), зарегистрированном до 01.07.2002, в случае создания контрагента до 01.07.2002;"]
[null,"-","свидетельство о постановке юридического лица на учет в налоговом органе;"]
[null,"-","выписка из ЕГРЮЛ. Дата выдачи выписки из ЕГРИП не должна превышать 30 дней на дату представления;"]
[null,"-","документы, подтверждающие полномочия лица, действующего от имени заявителя."]
[null,2,"Документы, подтверждающие полномочия лица, подписавшего запрос:"]
[null,"-","документ о назначении руководителя юридического лица;"]
[null,"-","приказ о вступлении в должность руководителя юридического лица;"]
[null,"-","доверенность представителя контрагента на право подписания запроса (в случае подписания запроса лицом, действующим на основании доверенности)."]
[null,3,"Копии правоустанавливающих документов, подтверждающих право собственности или иное законное право заявителя на подключаемый объект или земельный участок, права на которые не зарегистрированы в Едином государственном реестре прав на недвижимое имущество и сделок с ним (в случае если такие права зарегистрированы в указанном реестре, представляются копии свидетельств о государственной регистрации прав на указанный подключаемый объект или земельный участок)."]
[null,4,"Ситуационный план расположения подключаемого объекта с привязкой к территории населенного пункта или элементам территориального деления в схеме теплоснабжения."]
[null,5,"Топографическая карта земельного участка в масштабе 1:500 (для квартальной застройки 1:2000) в электронном виде в фрмате PDF с указанием всех наземных и подземных коммуникаций и сооружений."]
[null,6,"Правовые основания пользования заявителем подключаемым объектом и земельным участком, на котором планируется создание подключаемого объект."]
[null,"Генеральный директор","Федоров Ф.Ф",null,null,null,null,null,null,"дд.мм.гг"]
[null,null,"ФИО",null,null,null,"Подпись",null,null,"Дата"]
[]
[null,"М.П."]

{"sheet":"Заявка на договор ТП для ИП","index":2,"n_rows":150,"n_cols":12,"rows_kept":150,"cut":false,"hidden":false,"merged":[[146,9,146,10],[147,2,147,3],[147,9,147,10],[145,2,145,9],[142,2,142,9],[143,2,143,9],[144,2,144,9],[139,2,139,9],[140,2,140,9],[141,2,141,9],[146,2,146,3],[102,1,102,3],[102,9,102,10],[101,1,101,2],[101,3,101,4],[101,5,101,10],[136,2,136,9],[137,2,137,9],[138,2,138,9],[119,1,120,10],[124,1,125,10],[127,1,127,10],[129,1,130,10],[104,1,104,10],[106,1,107,10],[111,2,111,3],[111,6,111,8],[115,1,115,2],[117,1,117,10],[133,1,133,10],[99,1,99,2],[99,3,99,4],[99,5,99,10],[100,1,100,2],[100,3,100,4],[100,5,100,10],[85,1,87,10],[91,1,91,10],[93,1,94,10],[98,1,98,2],[98,3,98,4],[98,5,98,10],[53,2,53,10],[57,1,57,10],[58,9,58,10],[74,1,74,10],[78,1,79,10],[96,1,96,10],[88,1,88,10],[43,2,43,4],[49,2,49,5],[49,7,49,10],[46,2,46,10],[60,9,60,10],[62,2,62,3],[62,4,62,5],[62,6,62,7],[62,9,62,10],[63,2,63,3],[63,4,63,5],[63,6,63,7],[63,9,63,10],[64,2,64,3],[64,4,64,5],[35,2,35,4],[35,6,35,10],[37,2,37,4],[37,6,37,10],[39,2,39,10],[41,2,41,4],[41,8,41,10],[43,8,43,10],[45,1,45,4],[31,9,31,10],[33,2,33,3],[33,7,33,8],[26,2,26,7],[26,9,26,10],[28,2,28,7],[28,9,28,10],[29,9,29,10],[30,2,30,10],[27,2,27,7],[1,6,1,10],[20,11,22,11],[22,2,22,10],[23,0,25,0],[23,2,23,4],[23,6,23,10],[23,11,25,11],[24,3,24,4],[24,6,24,7],[25,9,25,10],[13,1,13,10],[14,1,14,10],[17,1,18,1],[17,2,18,2],[17,6,18,6],[17,7,18,9],[20,1,20,10],[17,3,18,5],[15,1,15,10],[6,1,6,10],[64,6,64,7],[64,9,64,10],[65,2,65,3],[65,4,65,5],[65,6,65,7],[65,9,65,10],[69,2,69,3],[69,4,69,5],[69,6,69,7],[69,9,69,10],[70,2,70,3],[70,4,70,5],[70,6,70,7],[70,9,70,10],[71,2,71,3],[71,4,71,5],[71,6,71,7],[71,9,71,10],[72,2,72,3],[72,4,72,5],[72,6,72,7],[72,9,72,10]]}
[]
[null,null,null,null,null,null,"Генеральному директору АО \"Теплосеть\"\n"]
[]
[]
[]
[]
[null,"ЗАЯВКА НА ПОДКЛЮЧЕНИЕ К СИСТЕМЕ ТЕПЛОСНАБЖЕНИЯ АО \"ТЕПЛОСЕТЬ\""]
[null,null,null,null,"(для индивидуального предпринимателя)"]
[]
[]
[]
[null,null,null,null,"Уважаемый Александр Александрович!"]
[]
[null,"Прошу Вас заключить договор о подключении к системе теплоснабжения АО \"Теплосеть\" объекта капитального строительства: "]
[null,"Строительство медицинского центра"]
[null,"(наименование объекта)"]
[]
[null,"в связи с: необходимостью подключения нового объекта",null,"увеличением тепловой нагрузки или тепловой мощности подключаемого объекта",null,null,null,"реконструкцией или модернизацией объекта без увеличения тепловой нагрузки или тепловой мощности",null,null,null,"Необходимо выбрать нужный вариант"]
[]
[]
[null,"1. Сведения о заявителе:"]
[]
[null,"Ф.И.О. индивидуального предпринимателя","Федоров Федор Федорович"]
[]
[null,"Запись о включении в ЕГРИП (ОГРНИП)","от","00.00.0000",null,"№","0000000000000000"]
[]
[null,"Ф.И.О. представителя (уполномоченного лица)","Федоров Ф.Ф."]
[null,null,"*В данной графе указываются лица, имеющие право действовать от имени ИП на основании доверенности."]
[null,"Документ, подтверждающий полномочия представителя","паспорт РФ"]
[]
[null,"Адрес регистрации по месту жительства","Индекс, город, улица, дом, строение, корпус, владение"]
[]
[]
[null,"ИНН","00000000000",null,"КПП",null,"ОКПО"]
[]
[null,"р/с",null,null,null,"в"]
[]
[null,"к/с",null,null,null,"БИК"]
[]
[null,"Контактное лицо (Ф.И.О.)"]
[]
[null,"Основной телефон ","00-00-00",null,null,null,null,"Дополнительный телефон"]
[]
[null,"Основной e-mail","111@000",null,null,null,null,"Дополнительный e-mail"]
[]
[null,"Уведомить меня по основным контактным данным ",null,null,null,null,null,null,null,null,null,"Необходимо выбрать нужный вариант"]
[null,null,"*** В случае если Заявитель будет недоступен по вышеуказанному контакту, Технические условия подключения будут отправлены почтой по  адресу, указанному в Разделе 1 настоящего Запроса"]
[null,"2. Местонахождение подключаемого объекта:"]
[]
[null,"Город","Ставрополь",null,null,null,"Район","Ленинский"]
[]
[]
[]
[null,"Улица","Новая"]
[]
[null,"Дом","121"]
[]
[null,"3. Технические параметры подключаемого объекта:"]
[null,"3.1 Таблица тепловых нагрузок по видам потребления ",null,null,null,null,null,null,null,null,null,"Таблица заполняется одна из двух представленных"]
[null,"(Заполняется одна из двух таблиц)"]
[null,"Для неподключенных строящихся (построенных) объектов:",null,null,null,null,null,null,null,"поле считается автоматически"]
[]
[null,"Наименование","Отопление",null,"Вентиляция",null,"ГВС ",null,"Прочее","Всего "]
[null,"Тепловая нагрузка, Гкал / час",0.3,null,0.2,null,0.28999999999999998,null,0,{"$f":"C64+E64+G64+I64","v":0.79}]
[]
[]
[]
[null,"Для реконструируемых объектов:"]
[]
[null,"Наименование","Отопление",null,"Вентиляция",null,"ГВС ",null,"Прочее","Всего "]
[null,"Тепловая нагрузка существующая, Гкал / час",0,null,0,null,0,null,0,{"$f":"C71+E71+G71+I71","v":0}]
[null,"Тепловая нагрузка после реконструкции, Гкал / час",0,null,0,null,0,null,0,{"$f":"C72+E72+G72+I72","v":0}]
[null,"Тепловая нагрузка дополнительная, Гкал / час",{"$f":"C72-C71","v":0},null,{"$f":"E72-E71","v":0},null,{"$f":"G72-G71","v":0},null,{"$f":"I72-I71","v":0},0,null,"Считается как разница между Тепловая нагрузка после реконструкции и Тепловая нагрузка существующая"]
[]
[null,"ВАЖНО: Если в рамках заявки на подключение планируется заключение договора о подключении нескольких объектов капитального строительства, то заявка должна содержать в себе таблицы нагрузок по каждому объекту."]
[]
[null,"3.2 Режимы теплопотребления для подключаемого объекта:"]
[]
[null,null,null,null,null,null,null,null,null,null,null,"Необходимо выбрать из выпадающего списка"]
[]
[null,"Если нужного варианта режима в списке нет, укажите собственный вариант"]
[]
[]
[null,"3.3 Расположение узла учета тепловой энергии "]
[]
[null,"на вводе теплового пункта, принадлежащем потребителю"]
[]
[]
[null,"Я хочу вместе с проектом Договора о подключении получить Технические условия на организацию учета тепловой энергии, теплоносителя:"]
[null,null,null,null,"Да",null,"Нет"]
[]
[null,"3.4 Требования к надежности теплоснабжения подключаемого объекта (допустимые перерывы в подаче теплоносителей  по продолжительности, периодам годам и др.)"]
[]
[null,"1 категория - потребители, не допускающие перерывов в подаче расчетного количества теплоты и снижения температуры воздуха в помещениях ниже расчетных",null,null,null,null,null,null,null,null,null,"Необходимо выбрать из выпадающего списка"]
[]
[]
[null,"3.5 Наличие и возможность использования собственных источников тепловой энергии (с указанием их мощностей и режимов работы)"]
[]
[null,"Наименование источника тепловой энергии",null,"Тепловая мощность,\nГкал / час",null,"Режим работы"]
[null,"нет"]
[]
[]
[]
[]
[null,"4. Правовые основания пользования подключаемым объектом или земельным участком, на котором расположен подключаемый объект:"]
[]
[null,"договор аренды земельного участка от 00.00.0000 № 000"]
[]
[]
[null,"5. Технические условия (если ранее выдавались):"]
[]
[null,"от","дд.мм.гг",null,null,"№"]
[]
[null,"6. Планируемый срок ввода объекта в эксплуатацию:"]
[]
[null,"мм.гг"]
[]
[null,"7. Информация о границах земельного участка, на котором планируется осуществить строительство / реконструкцию / модернизацию подключаемого объекта (содержится в ГПЗУ):"]
[]
[null,"000:00:0000000"]
[]
[]
[null,"8. Информация о виде разрешенного использования земельного участка (содержится в ГПЗУ):"]
[]
[null,"Здравоохранение\n"]
[]
[]
[null,"9. Информация о предельных параметрах разрешенного строительства / реконструкции / модернизации подключаемого объекта (содержится в ГПЗУ):"]
[]
[null,"Размещение объектов капитального строительства, предназначенных для оказания гражданам медицинской помощи. Содержание данного вида разрешенного использования включает в себя содержание видов разрешенного использования с кодами 3.4.1 - 3.4.2\n"]
[]
[]
[]
[null,"Я, действуя своей волей и в своем интересе, в соответствии со ст. 9 Федерального закона от 27 июля 2006 г. № 152-ФЗ «О персональных данных» даю согласие на обработку моих персональных данных, в целях осуществления договорных отношений в рамках законодательства РФ в сфере теплоснабжения."]
[null,null,null,null,"Да",null,"Нет"]
[]
[null,null,"Перечень необходимых документов для заключения Договора о подключении к системе теплоснабжения АО \"Теплосеть\""]
[null,1,"Заверенные копии учредительных документов:"]
[null,"-","свидетельство о государственной регистрации физического лица в качестве индивидуального предпринимателя;"]
[null,"-","свидетельство о постановке на учет в налоговом органе индивидуального предпринимателя;"]
[null,"-","выписка из единого государственного реестра индивидуальных предпринимателей (далее – ЕГРИП). Дата выдачи выписки из ЕГРИП не должна превышать 30 дней на дату представления."]
[null,2,"Доверенность представителя контрагента на право подписания запроса (в случае подписания запроса лицом, действующим на основании доверенности)."]
[null,3,"Копии правоустанавливающих документов, подтверждающих право собственности или иное законное право заявителя на подключаемый объект или земельный участок, права на которые не зарегистрированы в Едином государственном реестре прав на недвижимое имущество и сделок с ним (в случае если такие права зарегистрированы в указанном реестре, представляются копии свидетельств о государственной регистрации прав на указанный подключаемый объект или земельный участок)."]
[null,4,"Ситуационный план расположения подключаемого объекта с привязкой к территории населенного пункта или элементам территориального деления в схеме теплоснабжения."]
[null,5,"Топографическая карта земельного участка в масштабе 1:500 (для квартальной застройки 1:2000) в электронном виде в фрмате PDF с указанием всех наземных и подземных коммуникаций и сооружений."]
[null,6,"Правовые основания пользования заявителем подключаемым объектом и земельным участком, на котором планируется создание подключаемого объект."]
[null,"Заявитель","Федоров Ф.Ф.",null,null,null,null,null,null,"дд.мм.гг"]
[null,null,"ФИО",null,null,null,"Подпись",null,null,"Дата"]
[]
[null,"М.П."]

{"sheet":"Заявка на договор ТП физлицо","index":3,"n_rows":147,"n_cols":12,"rows_kept":147,"cut":false,"hidden":false,"merged":[[136,2,136,9],[143,9,143,10],[144,2,144,3],[144,9,144,10],[141,2,141,9],[137,2,137,9],[138,2,138,9],[139,2,139,9],[140,2,140,9],[115,1,115,10],[100,1,100,10],[102,1,105,10],[109,2,109,3],[109,6,109,8],[113,1,113,2],[135,2,135,9],[117,1,119,10],[123,1,125,10],[127,1,127,10],[129,1,131,10],[132,1,132,10],[66,2,66,3],[66,4,66,5],[66,6,66,7],[66,9,66,10],[62,2,62,3],[62,4,62,5],[62,6,62,7],[62,9,62,10],[60,6,60,7],[60,9,60,10],[61,2,61,3],[61,4,61,5],[50,2,50,10],[54,1,54,10],[60,2,60,3],[60,4,60,5],[55,9,55,10],[57,9,57,10],[59,2,59,3],[59,4,59,5],[59,6,59,7],[59,9,59,10],[11,1,11,10],[15,7,16,9],[13,1,13,10],[1,6,1,10],[18,11,20,11],[20,2,20,10],[21,0,40,0],[21,2,21,4],[21,6,21,10],[21,11,40,11],[38,2,38,4],[40,2,40,4],[28,2,28,10],[29,9,29,10],[31,2,31,3],[31,7,31,8],[15,3,16,5],[26,2,26,6],[34,2,34,10],[33,2,33,10],[18,1,18,10],[12,1,12,10],[15,1,16,1],[26,9,26,10],[22,2,22,7],[23,9,23,10],[24,2,24,3],[24,5,24,6],[24,9,24,10],[15,2,16,2],[15,6,16,6],[46,2,46,5],[46,7,46,10],[36,2,36,10],[38,8,38,10],[40,8,40,10],[42,1,42,4],[43,2,43,10],[68,6,68,7],[68,9,68,10],[97,1,97,2],[97,3,97,4],[97,5,97,10],[98,1,98,2],[98,3,98,4],[98,5,98,10],[99,1,99,3],[99,9,99,10],[6,1,6,10],[71,1,71,10],[75,1,77,10],[83,1,84,10],[85,1,85,10],[88,1,88,10],[90,1,92,10],[94,1,94,10],[96,1,96,2],[96,3,96,4],[96,5,96,10],[61,6,61,7],[61,9,61,10],[69,2,69,3],[69,4,69,5],[69,6,69,7],[69,9,69,10],[67,2,67,3],[67,4,67,5],[67,6,67,7],[67,9,67,10],[68,2,68,3],[68,4,68,5]]}
[]
[null,null,null,null,null,null,"Генеральному директору \nАО \"Теплосеть\"\n"]
[]
[]
[]
[]
[null,"ЗАЯВКА НА ПОДКЛЮЧЕНИЕ К СИСТЕМЕ ТЕПЛОСНАБЖЕНИЯ АО \"ТЕПЛОСЕТЬ\""]
[null,null,null,null,"(для физического лица)"]
[]
[null,null,null,null,"Уважаемый Александр Александрович!"]
[]
[null,"Прошу Вас заключить договор о подключении к системе теплоснабжения АО \"Теплосеть\" объекта капитального строительства: "]
[null,"торгово-офисные помещения"]
[null,"(наименование объекта)"]
[]
[null,"в связи с: необходимостью подключения нового объекта",null,"увеличением тепловой нагрузки или тепловой мощности подключаемого объекта",null,null,null,"реконструкцией или модернизацией объекта без увеличения тепловой нагрузки или тепловой мощности",null,null,null,"Необходимо выбрать нужный вариант"]
[]
[]
[null,"1. Сведения о заявителе:"]
[]
[null,"Ф.И.О. физического лица","Федоров Ф.Ф."]
[]
[null,"Наименование документа, \nудостоверяющего личность","паспорт РФ"]
[]
[null,"Серия",1111,null,"№",111111,null,null,"Код подразделения","111-11"]
[]
[null,"Выдан",null,null,null,null,null,null,"Дата выдачи",41255]
[]
[null,"Адрес регистрации по месту жительства","Индекс, город, улица, дом, строение, корпус, владение"]
[]
[]
[null,"ИНН"]
[]
[null,"Ф.И.О. представителя (уполномоченного лица)"]
[null,null,"*В данной графе указываются лица, имеющие право действовать от имени физического лица на основании доверенности, № доверенности"]
[]
[null,"Контактное лицо (Ф.И.О.)"]
[]
[null,"Основной телефон ",null,null,null,null,null,"Дополнительный телефон"]
[]
[null,"Основной e-mail",null,null,null,null,null,"Дополнительный e-mail"]
[]
[null,"Уведомить меня по основным контактным данным ",null,null,null,null,null,null,null,null,null,"Необходимо выбрать нужный вариант"]
[null,null,"*** В случае если Заявитель будет недоступен по вышеуказанному контакту, Технические условия подключения будут отправлены почтой по  адресу, указанному в Разделе 1 настоящего Запроса"]
[null,"2. Местонахождение подключаемого объекта:"]
[]
[null,"Город","Ставрополь",null,null,null,"Район","Промышленный"]
[]
[]
[]
[null,"Улица","45 Параллель"]
[]
[null,"Дом"]
[]
[null,"3. Технические параметры подключаемого объекта:"]
[null,"3.1 Таблица тепловых нагрузок по видам потребления ",null,null,null,null,null,null,null,null,null,"Таблица заполняется одна из двух представленных"]
[null,"(Заполняется одна из двух таблиц)"]
[null,"Для неподключенных строящихся (построенных) объектов:",null,null,null,null,null,null,null,"поле считается автоматически"]
[]
[null,"Наименование","Отопление",null,"Вентиляция",null,"ГВС ",null,"Прочее","Всего "]
[null,"Тепловая нагрузка, Гкал / час",0.1,null,0.15,null,3.5000000000000003E-2,null,0,{"$f":"C61+E61+G61+I61","v":0.28500000000000003}]
[]
[]
[]
[null,"Для реконструируемых объектов:"]
[]
[null,"Наименование","Отопление",null,"Вентиляция",null,"ГВС ",null,"Прочее","Всего "]
[null,"Тепловая нагрузка существующая, Гкал / час",0,null,0,null,0,null,0,{"$f":"C68+E68+G68+I68","v":0}]
[null,"Тепловая нагрузка после реконструкции, Гкал / час",0,null,0,null,0,null,0,{"$f":"C69+E69+G69+I69","v":0}]
[null,"Тепловая нагрузка дополнительная, Гкал / час",{"$f":"C69-C68","v":0},null,{"$f":"E69-E68","v":0},null,{"$f":"G69-G68","v":0},null,{"$f":"I69-I68","v":0},0,null,"Считается как разница между Тепловая нагрузка после реконструкции и Тепловая нагрузка существующая"]
[]
[null,"ВАЖНО: Если в рамках заявки на подключение планируется заключение договора о подключении нескольких объектов капитального строительства, то заявка должна содержать в себе таблицы нагрузок по каждому объекту."]
[]
[null,"3.2 Режимы теплопотребления для подключаемого объекта:"]
[]
[null,"непрерывный",null,null,null,null,null,null,null,null,null,"Необходимо выбрать из выпадающего списка"]
[]
[]
[null,"Если нужного варианта режима в списке нет, укажите собственный вариант"]
[]
[]
[null,"3.3 Расположение узла учета тепловой энергии "]
[]
[null,"на вводе теплового пункта, принадлежащем потребителю"]
[]
[null,"Я хочу вместе с проектом Договора о подключении получить Технические условия на организацию учета тепловой энергии, теплоносителя:"]
[null,null,null,null,"Да",null,"Нет"]
[]
[null,"3.4 Требования к надежности теплоснабжения подключаемого объекта (допустимые перерывы в подаче теплоносителей  по продолжительности, периодам годам и др.)"]
[]
[null,"3 категория - остальные потребители",null,null,null,null,null,null,null,null,null,"Необходимо выбрать из выпадающего списка"]
[]
[]
[]
[null,"3.5 Наличие и возможность использования собственных источников тепловой энергии (с указанием их мощностей и режимов работы)"]
[]
[null,"Наименование источника тепловой энергии",null,"Тепловая мощность,\nГкал / час",null,"Режим работы"]
[null,"нет"]
[]
[]
[null,"4. Правовые основания пользования подключаемым объектом или земельным участком, на котором расположен подключаемый объект:"]
[]
[null,"договор аренды земельного участка № 00 от 00.00.0000.(свидетельство о праве собственности №)"]
[]
[]
[]
[]
[null,"5. Технические условия (если ранее выдавались):"]
[]
[null,"от",null,null,null,"№"]
[]
[null,"6. Планируемый срок ввода объекта в эксплуатацию:"]
[]
[null,2019]
[]
[null,"7. Информация о границах земельного участка, на котором планируется осуществить строительство / реконструкцию / модернизацию подключаемого объекта (содержится в ГПЗУ):"]
[]
[null,"26:355555:452:15"]
[]
[]
[]
[null,"8. Информация о виде разрешенного используемого земельного участка (содержится в ГПЗУ):"]
[]
[null,"для осуществления предпринимательской деятельности"]
[]
[]
[]
[null,"9. Информация о предельных параметрах разрешенного строительства / реконструкции / модернизации подключаемого объекта (содержится в ГПЗУ):"]
[]
[null,"Размещение объектов капитального строительства, общей площадью свыше 5000 кв. м с целью размещения одной или нескольких организаций, осуществляющих продажу товаров, и (или) оказание услуг в соответствии с содержанием видов разрешенного использования с кодами 4.5 - 4.9;\nразмещение гаражей и (или) стоянок для автомобилей сотрудников и посетителей торгового центра\n"]
[]
[]
[null,"Я, действуя своей волей и в своем интересе, в соответствии со ст. 9 Федерального закона от 27 июля 2006 г. № 152-ФЗ «О персональных данных» даю согласие на обработку моих персональных данных, в целях осуществления договорных отношений в рамках законодательства РФ в сфере теплоснабжения."]
[null,null,null,null,"Да",null,"Нет"]
[]
[null,null,"Перечень необходимых документов для заключения Договора о подключении к системе теплоснабжения АО \"Теплосеть\""]
[null,1,"Копия паспорта"]
[null,2,"Доверенность представителя контрагента на право подписания запроса (в случае подписания запроса лицом, действующим на основании доверенности)."]
[null,3,"Копии правоустанавливающих документов, подтверждающих право собственности или иное законное право заявителя на подключаемый объект или земельный участок, права на которые не зарегистрированы в Едином государственном реестре прав на недвижимое имущество и сделок с ним (в случае если такие права зарегистрированы в указанном реестре, представляются копии свидетельств о государственной регистрации прав на указанный подключаемый объект или земельный участок)."]
[null,4,"Ситуационный план расположения подключаемого объекта с привязкой к территории населенного пункта или элементам территориального деления в схеме теплоснабжения."]
[null,5,"Топографическая карта земельного участка в масштабе 1:500 (для квартальной застройки 1:2000) в электронном виде в формате PDF с указанием всех наземных и подземных коммуникаций и сооружений (не прилагается в случае, если заявителем является физическое лицо, осуществляющее создание (реконструкцию) объекта индивидуального жилищного строительства)."]
[null,6,"Правовые основания пользования заявителем подключаемым объектом и земельным участком, на котором планируется создание подключаемого объект."]
[]
[null,"Заявитель","Федоров Ф.Ф",null,null,null,null,null,null,"дд.мм.гг"]
[null,null,"ФИО",null,null,null,"Подпись",null,null,"Дата"]
[]
[null,"М.П."]

{"sheet":"Списки","index":4,"n_rows":73,"n_cols":3,"rows_kept":73,"cut":false,"hidden":true,"merged":[]}
[]
[null,"Схема подключения"]
[]
[null,"Зависимая"]
[null,"Независимая"]
[]
[null,"Округ"]
[]
[null,"ЦАО"]
[null,"САО"]
[null,"СВАО"]
[null,"ВАО"]
[null,"ЮВАО"]
[null,"ЮАО"]
[null,"ЮЗАО"]
[null,"ЗАО"]
[null,"СЗАО"]
[null,"Новомосковский АО"]
[null,"Троицкий АО"]
[null,"Зеленоградский АО"]
[]
[null,"Назначение объекта"]
[]
["№","Категория","Комментарий"]
[null,null,"-"]
[1,"Жилые дома","Жилые дома"]
[2,"Общественные и административно-бытовые помещения","Гостиницы, общежития, пансионаты, д/о, мотели"]
[3,"ДОУ","Детсады, ясли"]
[4,"Объекты спортивного назначения","Стадионы, ФОК, бассейны, спортзалы, спортшколы"]
[5,"Здравоохранение","Больницы, родильные дома, поликлиники, амбулатории, госпитали, морги"]
[6,"Образование","Школы, интернаты, дом ребенка, ПТУ, училища, Вузы, амбулатории"]
[7,"Административно-офисные помещения","МФК, офисы, деловые центры, типографии, почта"]
[8,"Социально-бытовые объекты","Прачечные, химчистки, душевые, бани,парикмахерские, общественные туалеты"]
[9,"Объекты торгового назначения","Магазин, торговые центры, торговые залы, аптеки, вещевой рынок, ларьки, торговые палатки"]
[10,"Досугово-развлекательные учреждения","Дом культуры, интернет-кафе, дискотеки, клубы"]
[11,"Культурные объекты","Театры, кинотеатры, музеи, постоянно действующие выставочные комплексы (центры)"]
[12,"Предприятия общественного питания","Столовые, кафе, рестораны, пиццерии, хлебопекарня"]
[13,"Объекты производственного назначения","Заводы, цеха, станции, тепловые пункты, депо, гаражи,ремонтно-механические мастерские, склады, АЗС,СТО"]
[14,"Объекты городской инфраструктуры","Вокзалы, парки, оранжереи, теплицы, сельхоз.рынки"]
[15,"Транспортная инфраструктура","Дороги, эстакады, мосты, тоннели, путепроводы, жел.дор.пути"]
[16,"Религиозные сооружения","Храм, церковь, синагога, мечеть, монастырь, часовня, кирха"]
[17,"Объекты защиты населения","Полиция, мчс, военные, ГИБДД, вневедомственная охрана, ЧОПы, военная полиция"]
[18,"Объекты складского назначения","Склады, навесы, ангары, сараи"]
[19,"Нежилые помещения","Объекты заявлены как нежилые помещение без уточнения дальнейшего назначения"]
[20,"Комплексная застройка","Большая застройка, куда попадают  объекты из разных категорий"]
[21,"Временные объекты","бытовки, строительные городки, объекты механизации"]
[22,"Объекты незавершенного строительства","незавершенные объекты для проведения отделочных и пуско-наладочных работ"]
[23,"Прочее","Все, что не попало в категории выше"]
[]
[null,"Отделения сбыта"]
[]
[null,"Отделение сбыта №1 - г. Москва, ул. Складочная, д. 1А, стр. 1"]
[null,"Отделение сбыта №2 - г. Москва, ул. Бибиревская, д. 8 кор. 1"]
[null,"Отделение сбыта №3 - г. Москва, ул. Шарикоподшипниковская, д.1"]
[null,"Отделение сбыта №4 - г.Москва, пр. Андропова, д. 36 к. 2"]
[null,"Отделение сбыта №5 - г.Москва, ул.Героев Панфиловцев, д.10, к. 1"]
[null,"Отделение сбыта №6 - г.Зеленоград, корп. 1111А"]
[null,"Отделение сбыта №7 - г.Московский, 3 мкр., д.2а"]
[]
[]
[null,"Режим теплопотрбления"]
[]
[null,"непрерывный"]
[null,"односменный"]
[null,"двухсменный"]
[null,"сезонный"]
[]
[]
[null,"Требования к надежности"]
[]
[null,"1 категория - потребители, не допускающие перерывов в подаче расчетного количества теплоты и снижения температуры воздуха в помещениях ниже расчетных"]
[null,"2 категория - потребители, допускающие снижение температуры в отапливаемых помещениях на период ликвидации аварии, но не более 54 ч: \n-        жилых и общественных зданий до 12 °С; \n-        промышленных зданий до 8 °С  "]
[null,"3 категория - остальные потребители"]